bitfinex/quotes_SOLUSD_20250518
["timestamp","ask_amount","ask_price","bid_price","bid_amount"]
[1747584276455,28.01066081,176.18,176.12,34.38697473]
[1747584277086,28.01066081,176.18,176.12,8.38697473]
[1747584277384,28.01066081,176.18,176.12,34.38697473]
[1747584277587,28.01066081,176.19,176.12,34.38697473]
[1747584277765,28.01066081,176.21,176.15,26.0]
[1747584278383,29.14617803,176.2,176.15,26.0]
[1747584278584,28.01066081,176.18,176.12,5.67767473]
[1747584278764,29.14617803,176.17,176.11,5.67826926]
[1747584279091,28.01066081,176.15,176.1,0.47257719]
[1747584279399,28.01066081,176.13,176.1,0.47257719]
[1747584279562,29.14617803,176.12,176.1,0.47257719]
[1747584280071,1.13551722,176.12,176.1,0.47257719]
[1747584280272,28.01066081,176.12,176.1,0.47257719]
[1747584280501,29.14617803,176.12,176.1,0.47257719]
[1747584281177,28.01066081,176.13,176.1,0.47257719]
[1747584281483,29.14617803,176.12,176.1,0.47257719]
[1747584281788,1.13551722,176.12,176.1,0.47257719]
[1747584281971,18.64964886,176.16,176.1,0.47257719]
[1747584281972,24.32705673,176.14,176.1,0.47257719]
[1747584282170,28.01066081,176.11,176.1,0.47257719]
[1747584282371,46.66030967,176.11,175.98,29.9932]
[1747584282676,28.01066081,176.07,175.99,21.24]
[1747584282875,28.01066081,176.07,175.99,26.92214103]
[1747584283066,28.01066081,176.07,176.0,26.0]
[1747584284965,28.01066081,176.05,175.99,31.68209967]
[1747584285688,29.14617803,176.06,175.99,31.68209967]
[1747584286978,28.01066081,176.05,175.99,31.68209967]
[1747584287492,28.01066081,176.05,175.99,31.18209967]
[1747584288477,28.01066081,176.03,175.97,5.68246611]
[1747584288677,28.01066081,176.02,175.97,5.68246611]
[1747584288884,28.01066081,176.03,175.97,5.68246611]
[1747584289182,29.14617803,176.02,175.96,5.68308419]
[1747584289976,28.01066081,176.01,175.96,5.68308419]
[1747584290181,5.68113965,176.03,175.96,5.68308419]
[1747584290500,28.01066081,176.01,175.96,5.68308419]
[1747584290681,28.01066081,176.01,175.95,26.0]
[1747584291513,2.6995,176.1,175.98,26.0]
[1747584291710,47.79582689,176.08,175.98,26.0]
[1747584292016,28.01066081,176.07,175.98,26.0]
[1747584292180,29.14617803,176.06,175.99,5.68214103]
[1747584292508,6.4923,176.16,176.02,26.0]
[1747584292693,28.01066081,176.14,176.02,26.0]
[1747584293100,28.01066081,176.14,176.03,1.13580625]
[1747584293286,28.01066081,176.14,176.03,27.13580625]
[1747584293612,6.4923,176.16,176.03,27.13580625]
[1747584293812,2.7466,176.17,176.07,26.0]
[1747584293992,28.01066081,176.17,176.08,24.0205]
[1747584294187,29.14617803,176.16,176.09,5.67891419]
[1747584294509,28.01066081,176.15,176.09,5.67891419]
[1747584294911,29.14617803,176.16,176.09,5.67891419]
[1747584295095,28.01066081,176.17,176.09,5.67891419]
[1747584296109,28.01066081,176.16,176.09,5.67891419]
[1747584296485,6.81160576,176.18,176.09,5.67891419]
[1747584296713,28.01066081,176.16,176.09,5.67891419]
[1747584297115,28.01066081,176.15,176.09,5.67891419]
[1747584297292,28.01066081,176.16,176.09,5.67891419]
[1747584298208,28.01066081,176.17,176.09,5.67891419]
[1747584298588,29.14617803,176.18,176.09,5.67891419]
[1747584298787,28.01066081,176.17,176.09,5.67891419]
[1747584300088,6.4923,176.2,176.1,27.13550776]
[1747584300316,1.13551722,176.21,176.12,26.0]
[1747584300495,18.64964886,176.23,176.12,26.0]
[1747584300815,28.01066081,176.19,176.12,26.0]
[1747584301012,28.01066081,176.18,176.12,26.0]
[1747584301218,28.01066081,176.16,176.12,26.0]
[1747584301414,28.01066081,176.15,176.1,26.0]
[1747584301607,28.01066081,176.14,176.09,5.67891419]
[1747584301799,28.01066081,176.16,176.09,5.67891419]
[1747584301993,1.13551722,176.18,176.09,5.67891419]
[1747584302197,28.01066081,176.2,176.13,5.67762448]
[1747584302397,29.14617803,176.21,176.13,5.67762448]
[1747584302609,1.13551722,176.21,176.14,26.0]
[1747584302805,29.14617803,176.21,176.14,26.0]
[1747584303422,29.14617803,176.22,176.14,26.0]
[1747584303723,6.81045447,176.22,176.13,5.67762448]
[1747584303896,28.01066081,176.19,176.13,5.67762448]
[1747584304092,28.01066081,176.17,176.12,5.67788561]
[1747584304296,28.01066081,176.15,176.09,5.67891419]
[1747584304620,28.01066081,176.13,176.07,26.87955926]
[1747584305403,28.01066081,176.13,176.07,5.67955926]
[1747584305608,28.01066081,176.12,176.07,5.67955926]
[1747584305921,28.01066081,176.14,176.07,5.67955926]
[1747584306310,28.01066081,176.13,176.07,5.67955926]
[1747584308100,28.01066081,176.14,176.07,5.67955926]
[1747584308297,28.01066081,176.13,176.07,5.67955926]
[1747584309726,28.01066081,176.1,176.06,52.85987064]
[1747584310019,28.01066081,176.1,176.06,31.67987064]
[1747584310253,28.01066081,176.08,176.02,5.68117259]
[1747584310424,28.01066081,176.09,176.02,5.68117259]
[1747584310602,28.01066081,176.1,176.05,26.0]
[1747584311012,28.01066081,176.11,176.05,26.0]
[1747584311230,28.01066081,176.1,176.05,26.0]
[1747584311728,28.01066081,176.1,176.05,31.68012847]
[1747584312232,28.01066081,176.1,176.05,31.68014142]
[1747584314822,28.01066081,176.08,176.01,42.38]
[1747584315126,1.13551722,176.09,176.01,42.38]
[1747584315324,5.67876721,176.1,176.01,42.38]
[1747584315500,28.01066081,176.09,176.01,68.38]
[1747584315918,33.68985335,176.09,176.01,48.06142224]
[1747584316095,33.68985335,176.09,176.01,26.88142224]
[1747584316301,28.01066081,176.05,175.97,5.68278683]
[1747584316519,1.13551722,176.06,175.97,26.86278683]
[1747584316716,29.14617803,176.06,176.0,26.0]
[1747584317322,34.82633982,176.06,176.0,26.0]
[1747584318222,28.01066081,176.04,175.96,106.6496]
[1747584318528,29.14617803,176.03,175.96,106.6096]
[1747584318823,28.01066081,176.02,175.96,23.8096]
[1747584319009,28.01066081,176.02,175.95,5.68335332]
[1747584319010,1.13551722,176.01,175.95,31.68335332]
[1747584319209,1.13551722,176.01,175.93,5.68407889]
[1747584319410,6.81731076,176.01,175.93,26.84407889]
[1747584319645,1.13551722,176.04,175.96,26.0]
[1747584319805,1.13551722,176.05,175.96,26.0]
[1747584320004,58.63763459,176.07,175.97,1.1363151]
[1747584320205,28.01066081,176.06,175.96,108.8]
[1747584320430,59.77315181,176.07,175.96,109.93625901]
[1747584320708,59.77315181,176.07,175.97,3.18772587]
[1747584320920,28.01066081,176.04,175.97,3.18772587]
[1747584321513,28.01066081,176.03,175.97,3.18772587]
[1747584321714,28.01066081,176.03,175.97,8.87039437]
[1747584321914,6.81629279,176.04,175.97,8.87039437]
[1747584322144,29.14617803,176.04,175.97,8.87039437]
[1747584322441,34.82679999,176.04,175.97,5.6826685]
[1747584324425,33.69176233,176.03,175.97,5.6826685]
[1747584325338,18.64964886,176.1,176.0,28.6022]
[1747584325542,24.67094886,176.11,176.0,28.6022]
[1747584325543,11.6996226,176.11,176.01,27.13604338]
[1747584325718,11.6996226,176.11,176.02,21.16]
[1747584325925,6.0213,176.11,176.02,21.16]
[1747584326235,8.40755714,176.14,176.06,5.67988185]
[1747584326440,9.54307436,176.14,176.06,5.67988185]
[1747584326738,37.55373517,176.14,176.06,5.67988185]
[1747584327113,31.87637803,176.14,176.06,5.67988185]
[1747584327420,7.15681722,176.16,176.09,26.0]
[1747584327624,50.52602689,176.18,176.09,26.0]
[1747584327838,28.01066081,176.17,176.09,26.0]
[1747584328211,33.6871081,176.17,176.1,5.6785917]
[1747584328408,29.14617803,176.16,176.09,26.0]
[1747584328613,28.01066081,176.15,176.09,26.0]
[1747584329536,28.01066081,176.12,176.07,26.0]
[1747584329742,1.13551722,176.14,176.07,26.0]
[1747584329946,29.14617803,176.14,176.07,26.0]
[1747584330733,34.82350456,176.14,176.07,31.67930451]
[1747584330932,29.14617803,176.14,176.07,31.67930451]
[1747584331136,34.82322392,176.15,176.07,31.67930451]
[1747584331336,1.13551722,176.15,176.07,31.67930451]
[1747584331546,52.33700575,176.16,176.07,31.67930451]
[1747584331734,24.32634494,176.16,176.07,31.67930451]
[1747584331934,52.33700575,176.16,176.07,31.67930451]
[1747584332137,1.13551722,176.17,176.07,45.87820267]
[1747584332336,1.13551722,176.19,176.08,3.81873312]
[1747584332553,29.14617803,176.19,176.08,24.95873312]
[1747584332744,1.13551722,176.19,176.12,5.67794685]
[1747584333547,1.13551722,176.21,176.12,19.87281398]
[1747584334128,6.8107095,176.21,176.12,5.67794685]
[1747584334332,34.82137031,176.21,176.12,5.67794685]
[1747584334629,34.32137031,176.21,176.12,5.67794685]
[1747584334843,28.64617803,176.21,176.12,5.67794685]
[1747584335042,0.63551722,176.21,176.12,5.67794685]
[1747584335280,28.64617803,176.21,176.12,19.87281398]
[1747584336770,34.32140693,176.21,176.12,19.87281398]
[1747584337355,0.63551722,176.21,176.15,26.0]
[1747584337881,34.32135197,176.21,176.15,26.0]
[1747584338377,28.64617803,176.21,176.15,26.0]
[1747584338855,0.63551722,176.21,176.15,26.0]
[1747584339249,0.63551722,176.21,176.16,5.67665758]
[1747584339985,6.31061751,176.21,176.15,26.0]
[1747584340362,34.32127832,176.21,176.15,26.0]
[1747584340567,28.01066081,176.18,176.13,26.0]
[1747584340767,28.64617803,176.17,176.12,82.8]
[1747584340974,28.64617803,176.17,176.11,21.12]
[1747584340975,28.01066081,176.16,176.11,26.0]
[1747584341185,0.63551722,176.15,176.08,30.217]
[1747584341360,0.63551722,176.15,176.09,5.67885521]
[1747584341683,33.6870342,176.17,176.09,31.67885521]
[1747584341873,0.63551722,176.16,176.09,31.67885521]
[1747584342254,0.63551722,176.16,176.09,5.67885521]
[1747584342457,28.64617803,176.16,176.09,5.67885521]
[1747584342657,34.32295827,176.16,176.09,31.67885521]
[1747584343584,28.01066081,176.12,176.05,0.44338106]
[1747584343773,28.01066081,176.1,176.05,0.44338106]
[1747584343973,28.64617803,176.09,176.05,26.44338106]
[1747584344184,0.63551722,176.09,176.05,26.44338106]
[1747584344382,0.63551722,176.09,176.05,32.1235077]
[1747584344701,28.01066081,176.12,176.05,32.1235077]
[1747584345193,28.64617803,176.11,176.05,32.1235077]
[1747584345398,28.01066081,176.09,176.05,0.44338106]
[1747584345696,28.64617803,176.08,176.05,0.44338106]
[1747584346265,0.63551722,176.08,176.05,0.44338106]
[1747584347823,28.64617803,176.08,176.05,0.44338106]
[1747584348987,0.63551722,176.08,176.05,0.44338106]
[1747584350095,34.32551471,176.08,176.05,0.44338106]
[1747584350684,28.01066081,176.06,176.05,0.44338106]
[1747584351166,28.01066081,176.06,175.99,5.68214103]
[1747584351572,28.01066081,176.05,175.99,5.68214103]
[1747584352088,28.01066081,176.06,175.99,5.68214103]
[1747584352600,34.32638251,176.05,175.98,31.68246211]
[1747584353099,28.01066081,176.04,175.98,31.68246211]
[1747584353498,28.01066081,176.04,175.98,26.0]
[1747584353805,28.64617803,176.03,175.98,26.0]
[1747584355008,0.63551722,176.03,175.98,31.68240673]
[1747584355307,0.63551722,176.03,175.98,26.0]
[1747584355515,34.32705589,176.03,175.96,5.68308591]
[1747584355686,28.01066081,176.02,175.96,5.68308591]
[1747584356213,0.63551722,176.01,175.95,34.37291067]
[1747584356582,34.32705589,176.03,175.95,34.37291067]
[1747584356783,0.63551722,176.03,175.95,34.37291067]
[1747584357708,0.63551722,176.06,175.98,26.0]
[1747584358410,28.01066081,176.03,175.96,26.0]
[1747584358710,28.64617803,176.03,175.97,5.68278683]
[1747584358898,6.31641415,176.03,175.97,5.68278683]
[1747584359079,34.32707496,176.03,175.97,5.68278683]
[1747584359500,28.64617803,176.03,175.97,5.68278683]
[1747584359901,28.01066081,175.98,175.9,0.42684356]
[1747584360218,28.01066081,176.04,175.94,26.0]
[1747584360383,0.63551722,176.04,175.94,26.0]
[1747584360818,0.63551722,176.04,175.95,5.68343279]
[1747584360983,6.68741722,176.08,175.96,26.0]
[1747584361192,28.01066081,176.07,175.97,2.7252]
[1747584361398,28.01066081,176.07,175.99,26.0]
[1747584361908,0.63551722,176.08,175.99,26.0]
[1747584362100,28.01066081,176.07,175.99,26.0]
[1747584362411,34.32555574,176.08,175.99,26.0]
[1747584362714,28.01066081,176.07,175.99,26.0]
[1747584362912,0.63551722,176.06,176.0,5.68181818]
[1747584363115,6.31555078,176.06,176.0,5.68181818]
[1747584363522,34.32621159,176.06,175.99,31.68204771]
[1747584363718,28.01066081,176.04,175.97,2.7252]
[1747584364517,28.01066081,176.05,175.98,5.68245502]
[1747584364696,34.32621159,176.06,175.98,5.68245502]
[1747584364891,19.28516608,176.1,176.01,26.0]
[1747584365097,0.63551722,176.08,176.01,26.0]
[1747584365918,6.31475679,176.08,176.02,5.68117259]
[1747584366124,28.01066081,176.07,175.99,26.0]
[1747584366315,28.01066081,176.05,175.98,5.68246391]
[1747584366507,28.01066081,176.05,175.98,31.68246391]
[1747584366897,28.64617803,176.06,175.98,31.68246391]
[1747584367103,0.63551722,176.06,175.98,45.8886237]
[1747584367299,34.3254176,176.08,175.98,45.7126767]
[1747584367503,28.01066081,176.07,175.98,45.7126767]
[1747584368026,28.64617803,176.08,176.01,26.0]
[1747584368211,0.63551722,176.08,176.01,26.0]
[1747584368717,28.01066081,176.1,176.0,26.0]
[1747584368919,28.01066081,176.1,176.0,108.8]
[1747584369128,28.01066081,176.08,176.0,108.8]
[1747584369528,46.66030967,176.1,176.01,5.68149536]
[1747584369726,5.67875646,176.1,176.01,5.68149536]
[1747584369904,33.68941727,176.1,176.01,5.68149536]
[1747584370228,28.01066081,176.08,176.01,5.68149536]
[1747584370432,28.01066081,176.06,176.0,114.48178002]
[1747584370641,28.64617803,176.07,176.0,31.68178002]
[1747584370843,28.01066081,176.08,176.0,31.68178002]
[1747584371138,28.64617803,176.09,176.0,31.68178002]
[1747584371435,0.63551722,176.09,176.0,31.68178002]
[1747584371642,28.64617803,176.09,176.0,31.68178002]
[1747584371948,28.01066081,176.07,176.0,31.68178002]
[1747584372127,28.64617803,176.06,176.0,31.68178002]
[1747584372436,28.01066081,176.05,175.98,52.74225125]
[1747584372639,28.01066081,176.03,175.98,26.0]
[1747584372958,28.01066081,176.01,175.95,5.68343279]
[1747584373457,28.64617803,176.02,175.95,5.68343279]
[1747584373747,33.69247899,176.0,175.94,0.42222814]
[1747584374132,0.63551722,175.99,175.94,0.42222814]
[1747584374327,28.64617803,175.99,175.94,0.42222814]
[1747584375243,28.01066081,175.96,175.94,0.42222814]
[1747584375437,28.01066081,175.97,175.94,0.42222814]
[1747584375741,33.69351987,175.97,175.94,0.42222814]
[1747584376550,0.63551722,175.96,175.94,0.42222814]
[1747584377940,0.63551722,175.97,175.94,0.42222814]
[1747584379060,0.63551722,175.98,175.94,6.1059386]
[1747584379246,0.63551722,175.98,175.94,6.10596845]
[1747584379445,28.64617803,176.01,175.94,6.10596845]
[1747584379760,28.01066081,176.0,175.94,6.10596845]
[1747584380061,33.69258927,176.0,175.94,6.10596845]
[1747584380237,33.69258927,176.0,175.94,0.42222814]
[1747584380238,28.64617803,175.99,175.94,0.42222814]
[1747584382149,0.63551722,175.99,175.94,6.10576594]
[1747584382557,6.31781727,175.99,175.94,0.42222814]
[1747584382763,28.01066081,175.98,175.94,0.42222814]
[1747584382963,28.64617803,175.97,175.94,0.42222814]
[1747584383944,34.3292184,175.97,175.94,0.42222814]
[1747584385481,28.01066081,175.96,175.94,0.42222814]
[1747584385682,47.29582689,175.95,175.94,0.42222814]
[1747584385985,52.97925968,175.95,175.94,0.42222814]
[1747584386184,18.64964886,175.94,175.86,5.68627847]
[1747584386381,28.01066081,175.92,175.85,31.68659359]
[1747584386756,28.01066081,175.92,175.85,5.68659359]
[1747584387104,28.64617803,175.91,175.86,26.0]
[1747584387995,34.33105115,175.91,175.86,26.0]
[1747584388358,6.32039034,175.91,175.86,26.0]
[1747584388583,34.33105115,175.91,175.86,26.0]
[1747584389001,28.64617803,175.91,175.86,31.68627331]
[1747584389209,28.64617803,175.91,175.86,26.0]
[1747584389486,0.63551722,175.91,175.86,31.68626521]
[1747584390002,6.31946798,175.94,175.86,31.68626521]
[1747584390205,34.33012879,175.94,175.86,31.68626521]
[1747584390993,0.63551722,175.94,175.86,31.68626521]
[1747584391481,56.10842689,175.97,175.86,45.90211872]
[1747584391664,0.63551722,175.97,175.86,128.70211872]
[1747584392061,26.68189163,176.0,175.91,26.0]
[1747584392266,0.63551722,175.99,175.91,26.0]
[1747584392474,0.63551722,175.99,175.93,26.0]
[1747584392674,0.63551722,176.0,175.93,26.0]
[1747584393096,34.327343,176.03,175.93,26.0]
[1747584393391,6.31668219,176.03,175.93,26.0]
[1747584393607,28.01066081,176.01,175.93,26.0]
[1747584394195,28.01066081,176.01,175.94,5.68375582]
[1747584394396,0.63551722,176.01,175.94,5.68375582]
[1747584394588,34.32777046,176.01,175.94,5.68375582]
[1747584394782,0.63551722,176.01,175.94,5.68375582]
[1747584394986,28.64617803,176.03,175.94,5.68375582]
[1747584395920,28.64617803,176.03,175.94,19.89314538]
[1747584396501,34.32716308,176.03,175.94,19.89314538]
[1747584397016,28.01066081,176.02,175.94,19.89314538]
[1747584397317,28.01066081,176.02,175.95,3.18606054]
[1747584397520,0.63551722,176.03,175.96,5.68310979]
[1747584397805,28.01066081,176.03,175.96,5.68310979]
[1747584398017,28.01066081,175.99,175.95,3.18606054]
[1747584398210,28.01066081,175.97,175.93,26.0]
[1747584399105,28.01066081,175.98,175.93,26.0]
[1747584399305,28.01066081,175.99,175.93,31.68404475]
[1747584400009,19.28516608,176.02,175.93,31.68404475]
[1747584400208,6.31677947,176.02,175.93,31.68404475]
[1747584400521,28.01066081,175.98,175.93,26.0]
[1747584401213,28.01066081,175.98,175.92,8.40755058]
[1747584401604,33.69324155,175.98,175.92,2.7232]
[1747584401808,28.01066081,175.98,175.92,8.40750469]
[1747584402295,33.69321255,175.98,175.92,2.7232]
[1747584402496,28.64617803,175.97,175.91,82.8]
[1747584402717,28.01066081,175.96,175.91,82.8]
[1747584402899,28.64617803,175.97,175.91,88.48461418]
[1747584403100,28.01066081,175.97,175.91,88.48461418]
[1747584403392,28.64617803,175.96,175.89,26.0]
[1747584403599,28.01066081,175.95,175.89,31.68536792]
[1747584403812,28.01066081,175.95,175.88,8.40880662]
[1747584405017,5.68375582,175.94,175.88,8.40880662]
[1747584405219,5.68375582,175.94,175.88,2.7232]
[1747584405405,5.68375582,175.94,175.89,3.19256595]
[1747584405600,33.69441663,175.94,175.89,3.19256595]
[1747584406519,28.01066081,175.94,175.89,8.87792149]
[1747584406693,33.69417325,175.95,175.89,8.87792149]
[1747584407091,33.69417325,175.95,175.89,5.68535554]
[1747584407617,33.69417325,175.95,175.88,5.68569479]
[1747584408212,0.63551722,175.94,175.88,5.68569479]
[1747584408924,6.31934524,175.94,175.88,5.68569479]
[1747584409124,34.33000605,175.94,175.87,31.68588989]
[1747584409704,23.93195773,175.94,175.87,31.68588989]
[1747584410432,23.93195773,175.94,175.88,8.87910354]
[1747584410797,23.93195773,175.94,175.88,3.19350717]
[1747584411224,23.93195773,175.94,175.88,8.8791745]
[1747584411525,23.29610611,175.95,175.88,8.8791745]
[1747584411740,0.63551722,175.98,175.89,3.19350717]
[1747584412027,18.24812971,175.98,175.89,3.19350717]
[1747584412231,6.3173354,176.0,175.91,26.0]
[1747584412410,23.92994789,176.0,175.93,5.68407889]
[1747584412616,17.61261249,175.99,175.92,26.0]
[1747584412915,18.24812971,175.98,175.92,26.0]
[1747584413228,17.61261249,175.98,175.92,26.0]
[1747584413529,18.24812971,175.99,175.92,26.0]
[1747584414029,17.61261249,175.98,175.92,26.0]
[1747584414232,17.61261249,175.98,175.93,3.19497552]
[1747584414436,5.68278683,175.97,175.93,3.19497552]
[1747584415130,18.24812971,175.96,175.93,3.19497552]
[1747584415530,17.61261249,175.95,175.93,3.19497552]
[1747584415736,17.61261249,175.95,175.88,31.68561162]
[1747584416040,17.61261249,175.95,175.88,5.68561162]
[1747584416537,23.29618302,175.95,175.88,5.68561162]
[1747584416924,23.29618302,175.95,175.87,156.44596577]
[1747584417232,5.68357053,175.95,175.88,3.2024753]
[1747584417539,23.93095658,175.97,175.88,3.2024753]
[1747584417720,18.64964886,176.0,175.88,3.2024753]
[1747584417721,23.29508496,175.98,175.9,26.0]
[1747584417926,23.29508496,175.98,175.91,26.0]
[1747584418629,23.29508496,175.98,175.91,31.68455247]
[1747584418840,23.29508496,175.98,175.92,3.2024753]
[1747584419635,23.29508496,175.98,175.92,8.88682655]
[1747584420312,23.29508496,175.98,175.92,3.2024753]
[1747584420845,23.29508496,175.98,175.93,3.2024753]
[1747584422129,17.61261249,175.97,175.93,3.2024753]
[1747584422318,2.6603,176.05,175.94,1.13679991]
[1747584422517,5.68020448,176.05,175.97,26.0]
[1747584423153,0.63551722,176.04,175.97,26.0]
[1747584423337,0.63551722,176.07,175.97,26.0]
[1747584423537,0.63551722,176.08,175.97,27.13641391]
[1747584423846,6.31475393,176.08,175.99,5.68214103]
[1747584424246,6.31475393,176.08,176.0,3.2024753]
[1747584425042,6.31475393,176.08,176.0,8.88400429]
[1747584425557,34.44877148,176.08,176.0,8.88400429]
[1747584425751,0.63551722,176.08,176.01,3.2024753]
[1747584425947,28.76953477,176.11,176.03,26.0]
[1747584426562,33.81261712,176.1,176.03,26.0]
[1747584426936,28.13401755,176.07,176.01,20.92]
[1747584427153,33.8138994,176.06,175.99,31.68206877]
[1747584427462,33.8138994,176.06,175.99,20.92]
[1747584427644,28.76953477,176.05,175.99,20.92]
[1747584428244,28.76953477,176.05,175.94,35.21107788]
[1747584428245,28.13401755,176.02,175.94,35.21107788]
[1747584428464,28.13401755,176.03,175.95,5.68334351]
[1747584428663,19.28516608,176.05,175.96,26.0]
[1747584428664,28.76953477,176.05,175.96,26.0]
[1747584428974,28.76953477,176.05,175.96,29.19237897]
[1747584429149,28.13401755,176.03,175.96,29.19237897]
[1747584429346,28.76953477,176.02,175.96,3.19237897]
[1747584429865,28.13401755,176.01,175.96,3.19237897]
[1747584430243,28.13401755,176.01,175.94,31.68372379]
[1747584430442,28.13401755,176.0,175.94,26.0]
[1747584430649,0.63551722,176.01,175.94,26.0]
[1747584430852,28.76953477,176.01,175.94,26.0]
[1747584431156,5.68181818,176.0,175.94,26.0]
[1747584431744,5.68181818,176.0,175.94,31.68372061]
[1747584431952,5.6814092,176.02,175.94,31.68372061]
[1747584432467,5.6814092,176.02,175.95,3.19344643]
[1747584432662,33.81542675,176.02,175.95,3.19344643]
[1747584432977,6.31714368,176.01,175.95,3.19344643]
[1747584433460,34.45116123,176.01,175.95,3.19344643]
[1747584433871,34.45116123,176.01,175.94,26.0]
[1747584434272,28.13401755,176.0,175.93,20.92]
[1747584434462,28.13401755,176.0,175.93,26.60402212]
[1747584434669,0.63551722,175.99,175.93,20.92]
[1747584434858,28.13401755,175.98,175.92,26.0]
[1747584435178,6.31830405,175.97,175.92,26.0]
[1747584435380,5.68278683,175.97,175.92,26.0]
[1747584435880,5.68278683,175.97,175.91,0.40884212]
[1747584436083,5.68278683,175.97,175.93,3.19550494]
[1747584436875,33.81680438,175.97,175.93,3.19550494]
[1747584437044,6.31894088,175.96,175.93,3.19550494]
[1747584437248,28.13401755,175.98,175.93,3.19550494]
[1747584437448,28.76953477,175.98,175.91,0.40884212]
[1747584438177,0.63551722,175.98,175.92,8.88220825]
[1747584438375,6.31802005,175.98,175.92,8.88220825]
[1747584438877,6.31802005,175.98,175.92,3.19780832]
[1747584439089,34.4520376,175.98,175.92,3.19780832]
[1747584439988,34.4520376,175.98,175.91,0.40884212]
[1747584440576,18.64964886,176.03,175.92,1.13680275]
[1747584440872,19.28516608,176.03,175.92,1.13680275]
[1747584441092,5.68117259,176.02,175.94,26.0]
[1747584441273,47.41918363,176.03,175.94,26.0]
[1747584441476,53.10011522,176.03,175.94,26.0]
[1747584441674,19.28516608,176.05,175.95,3.19744027]
[1747584441979,0.63551722,176.05,175.96,23.6534]
[1747584442359,0.63551722,176.05,175.97,26.0]
[1747584442758,47.41918363,176.06,175.97,26.0]
[1747584443270,53.09910235,176.06,175.99,5.68214103]
[1747584443470,24.9650848,176.06,175.99,5.68214103]
[1747584443678,0.63551722,176.06,175.99,5.68214103]
[1747584443858,0.63551722,176.07,175.99,5.68214103]
[1747584444192,34.4493099,176.07,175.99,5.68214103]
[1747584444856,28.13401755,176.05,175.98,3.19744027]
[1747584445052,28.13401755,176.05,175.97,26.0]
[1747584445720,33.81419796,176.06,175.98,5.68241207]
[1747584446008,28.13401755,176.06,175.98,5.68241207]
[1747584446212,33.81397001,176.06,175.98,5.68241207]
[1747584446702,5.67960572,176.07,175.99,3.19305737]
[1747584447102,33.81362327,176.07,175.99,3.19305737]
[1747584447696,23.26800919,176.07,176.0,5.68181818]
[1747584448078,17.58840347,176.07,176.0,5.68181818]
[1747584448284,0.63551722,176.08,176.0,5.68181818]
[1747584448500,6.3147877,176.08,176.0,5.68181818]
[1747584448689,0.63551722,176.08,176.0,31.68181818]
[1747584448994,6.31489988,176.08,176.0,31.68181818]
[1747584449909,17.58840347,176.07,175.99,5.68211777]
[1747584450093,18.22392069,176.06,175.99,5.68211777]
[1747584450413,18.22392069,176.06,176.0,3.19105907]
[1747584451512,17.58840347,176.05,176.0,3.19105907]
[1747584452083,23.26869906,176.05,176.0,3.19105907]
[1747584452292,23.26869906,176.05,175.99,5.68213453]
[1747584452490,6.31513858,176.07,175.99,5.68213453]
[1747584453514,23.90354205,176.07,175.99,5.68213453]
[1747584454315,18.22392069,176.07,175.99,5.68213453]
[1747584455328,23.26772227,176.08,175.99,5.68213453]
[1747584455492,0.63551722,176.09,175.99,19.8874871]
[1747584455692,0.63551722,176.09,176.0,3.190604]
[1747584456401,6.31450946,176.09,176.01,5.68149536]
[1747584456800,6.31450946,176.09,176.02,3.190604]
[1747584457416,23.90291293,176.09,176.02,3.190604]
[1747584457797,6.31450946,176.09,176.02,3.190604]
[1747584457999,23.90291293,176.09,176.02,3.190604]
[1747584458317,23.90291293,176.09,176.01,5.68149536]
[1747584458517,17.58840347,176.08,176.0,26.0]
[1747584458701,17.58840347,176.06,175.99,5.68214103]
[1747584459582,23.26858796,176.06,176.0,3.19136652]
[1747584460407,0.63551722,176.05,176.0,3.19136652]
[1747584461027,0.63551722,176.05,175.99,5.68209864]
[1747584461417,18.22392069,176.05,175.96,85.5734]
[1747584461726,5.68052715,176.04,175.97,26.52269313]
[1747584462403,5.68052715,176.04,175.98,3.19497244]
[1747584463634,18.22392069,176.03,175.98,3.19497244]
[1747584464831,23.26893062,176.04,175.98,8.87739139]
[1747584465139,5.68052715,176.04,175.98,5.68241895]
[1747584465327,18.22392069,176.08,175.98,6.81868555]
[1747584465508,0.63551722,176.08,175.98,6.81868555]
[1747584465903,18.22392069,176.08,175.98,6.81868555]
[1747584466217,5.67867531,176.1,176.01,26.0]
[1747584466417,5.67867531,176.1,176.02,20.82]
[1747584466917,5.67867531,176.1,176.03,5.68084985]
[1747584467121,5.67867531,176.1,176.03,8.87506413]
[1747584467324,42.55188786,176.11,176.03,8.87506413]
[1747584468919,42.55188786,176.11,176.04,8.87461833]
[1747584469723,17.58840347,176.06,176.04,3.19421428]
[1747584469931,18.22392069,176.05,175.97,5.68270863]